fUSD/lending_fUSD_20250515
["ID","MTS","AMOUNT","RATE_DAILY","PERIOD"]
[361136704,1747301321136,-400.0,0.00011637,2]
[361136705,1747301321161,-400.0,0.00011637,2]
[361136706,1747301321185,-400.0,0.00011637,2]
[361136707,1747301321208,-400.0,0.00011637,2]
[361136708,1747301321232,-400.0,0.00011637,2]
[361136709,1747301321257,-1164.73,0.00011637,2]
[361136710,1747301321281,-682.55,0.00011637,2]
[361136711,1747301321307,-908.55,0.00011637,2]
[361136712,1747301321332,-400.0,0.00011637,2]
[361136713,1747301321358,-641.25,0.00011637,2]
[361136714,1747301321384,-752.03,0.00011637,2]
[361136715,1747301321409,-1001.8,0.00011637,2]
[361136716,1747301321434,-400.0,0.00011637,2]
[361136717,1747301321459,-400.0,0.00011637,2]
[361136718,1747301321484,-400.0,0.00011637,2]
[361136719,1747301321509,-545.62,0.00011637,2]
[361136720,1747301321534,-412.87558408,0.00011637,2]
[361136721,1747301321560,-559.24,0.00011637,2]
[361136722,1747301321584,-400.0,0.00011637,2]
[361136723,1747301321609,-1423.08,0.00011637,2]
[361136724,1747301321633,-400.0,0.00011637,2]
[361136725,1747301321660,-896.73,0.00011637,2]
[361136726,1747301321687,-400.0,0.00011637,2]
[361136727,1747301321711,-619.28,0.00011637,2]
[361136728,1747301321738,-400.0,0.00011637,2]
[361136729,1747301321762,-400.0,0.00011637,2]
[361136730,1747301321788,-400.0,0.00011637,2]
[361136731,1747301321814,-400.0,0.00011637,2]
[361136732,1747301321838,-400.0,0.00011637,2]
[361136733,1747301321862,-403.92,0.00011637,2]
[361136734,1747301321887,-481.97,0.00011637,2]
[361136735,1747301321911,-962.89,0.00011637,2]
[361136736,1747301321936,-486.25,0.00011637,2]
[361136737,1747301321960,-997.33,0.00011637,2]
[361136738,1747301321984,-497.83,0.00011637,2]
[361136739,1747301322008,-893.27,0.00011637,2]
[361136740,1747301322034,-1307.92,0.00011637,2]
[361136741,1747301322058,-581.78,0.00011637,2]
[361136742,1747301322082,-419.59,0.00011637,2]
[361136743,1747301322108,-400.0,0.00011637,2]
[361136744,1747301322133,-400.0,0.00011637,2]
[361136745,1747301322157,-1412.37,0.00011637,2]
[361136746,1747301322182,-887.78,0.00011637,2]
[361136747,1747301322206,-400.0,0.00011637,2]
[361136748,1747301322231,-151.0,0.00011638,2]
[361136749,1747301322255,-151.0,0.00011638,2]
[361136750,1747301322280,-2470.556945,0.00011638,2]
[361136751,1747301322304,-2470.556945,0.00011638,2]
[361136752,1747301322328,-151.0,0.00011638,2]
[361136753,1747301322353,-267.878105,0.00011638,2]
[361136754,1747301322378,-151.0,0.00011638,2]
[361136755,1747301322403,-151.0,0.00011638,2]
[361136756,1747301322427,-151.0,0.00011638,2]
[361136757,1747301322451,-151.0,0.00011638,2]
[361136758,1747301322477,-151.0,0.00011638,2]
[361136759,1747301322502,-151.0,0.00011638,2]
[361136760,1747301322530,-1175.596063,0.00011638,2]
[361136761,1747301322558,-1175.596063,0.00011638,2]
[361136763,1747301322586,-170.947587,0.00011638,2]
[361136765,1747301322614,-170.947587,0.00011638,2]
[361136766,1747301322642,-1175.596063,0.00011638,2]
[361136767,1747301322669,-1175.59607,0.00011638,2]
[361136768,1747301322696,-170.947587,0.00011638,2]
[361136769,1747301322723,-170.947579,0.00011638,2]
[361136770,1747301322757,-404.35318631,0.00011638,2]
[361136771,1747301322785,-165.43539164,0.00011638,2]
[361136772,1747301322812,-151.0,0.00011638,2]
[361136773,1747301322839,-151.0,0.00011638,2]
[361136774,1747301322866,-1667.54623,0.00011638,2]
[361136775,1747301322891,-400.98859821,0.00011638,2]
[361136776,1747301322918,-4871.749888,0.00011638,2]
[361136777,1747301322944,-306.562508,0.00011638,2]
[361136778,1747301322970,-400.0,0.00011638,2]
[361136779,1747301322998,-400.0,0.00011638,2]
[361136780,1747301323023,-400.0,0.00011638,2]
[361136781,1747301323049,-400.0,0.00011638,2]
[361136782,1747301323075,-400.0,0.00011638,2]
[361136783,1747301323101,-547.54,0.00011638,2]
[361136784,1747301323128,-1643.04,0.00011638,2]
[361136785,1747301323155,-402.6787215,0.00011638,2]
[361136786,1747301323180,-400.0,0.00011638,2]
[361136787,1747301323208,-400.0,0.00011638,2]
[361136788,1747301323234,-400.0,0.00011638,2]
[361136789,1747301323260,-400.0,0.00011638,2]
[361136790,1747301323285,-400.0,0.00011638,2]
[361136791,1747301323311,-602.89,0.00011638,2]
[361136792,1747301323338,-408.07937893,0.00011638,2]
[361136793,1747301323362,-400.0,0.00011638,2]
[361136794,1747301323388,-400.0,0.00011638,2]
[361136795,1747301323415,-400.0,0.00011638,2]
[361136796,1747301323440,-518.85778298,0.00011638,2]
[361136797,1747301323467,-400.0,0.00011638,2]
[361136798,1747301323493,-400.0,0.00011638,2]
[361136799,1747301323520,-400.0,0.00011638,2]
[361136800,1747301323547,-400.0,0.00011638,2]
[361136802,1747301323574,-400.0,0.00011638,2]
[361136804,1747301323601,-944.26,0.00011638,2]
[361136805,1747301323627,-400.0,0.00011638,2]
[361136806,1747301323655,-535.58,0.00011638,2]
[361136807,1747301323682,-400.0,0.00011638,2]
[361136808,1747301323709,-400.0,0.00011638,2]
[361136809,1747301323737,-483.81,0.00011638,2]
[361136810,1747301323763,-400.0,0.00011638,2]
[361136811,1747301323792,-400.0,0.00011638,2]
[361136812,1747301323819,-590.62,0.00011638,2]
[361136813,1747301323844,-400.0,0.00011638,2]
[361136814,1747301323870,-530.44,0.00011638,2]
[361136815,1747301323897,-400.0,0.00011638,2]
[361136816,1747301323924,-400.0,0.00011638,2]
[361136817,1747301323952,-400.0,0.00011638,2]
[361136818,1747301323979,-400.0,0.00011638,2]
[361136819,1747301324006,-400.0,0.00011638,2]
[361136820,1747301324035,-581.78,0.00011638,2]
[361136821,1747301324062,-400.0,0.00011638,2]
[361136822,1747301324089,-400.0,0.00011638,2]
[361136823,1747301324117,-400.0,0.00011638,2]
[361136824,1747301324144,-400.0,0.00011638,2]
[361136825,1747301324171,-400.0,0.00011638,2]
[361136826,1747301324196,-400.0,0.00011638,2]
[361136827,1747301324223,-400.0,0.00011638,2]
[361136828,1747301324250,-400.0,0.00011638,2]
[361136829,1747301324277,-400.0,0.00011638,2]
[361136830,1747301324303,-557.27,0.00011638,2]
[361136831,1747301324328,-961.37,0.00011638,2]
[361136832,1747301324354,-400.0,0.00011638,2]
[361136833,1747301324379,-1186.09,0.00011638,2]
[361136834,1747301324406,-400.0,0.00011638,2]
[361136835,1747301324434,-400.0,0.00011638,2]
[361136836,1747301324461,-400.0,0.00011638,2]
[361136837,1747301324489,-400.0,0.00011638,2]
[361136838,1747301324517,-400.0,0.00011638,2]
[361136839,1747301324546,-400.0,0.00011638,2]
[361136840,1747301324574,-400.0,0.00011638,2]
[361136841,1747301324831,-400.0,0.00011638,2]
[361136842,1747301324857,-400.0,0.00011638,2]
[361136843,1747301324882,-418.28,0.00011638,2]
[361136844,1747301324908,-400.0,0.00011638,2]
[361136845,1747301324933,-400.0,0.00011638,2]
[361136846,1747301324957,-400.0,0.00011638,2]
[361136847,1747301324984,-400.0,0.00011638,2]
[361136848,1747301325009,-400.0,0.00011638,2]
[361136849,1747301325035,-690.76,0.00011638,2]
[361136850,1747301325060,-433.13,0.00011638,2]
[361136851,1747301325084,-400.0,0.00011638,2]
[361136852,1747301325108,-400.0,0.00011638,2]
[361136853,1747301325133,-400.0,0.00011638,2]
[361136854,1747301325158,-427.29,0.00011638,2]
[361136855,1747301325183,-400.0,0.00011638,2]
[361136856,1747301325208,-400.0,0.00011638,2]
[361136857,1747301325234,-430.65193575,0.00011638,2]
[361136858,1747301325259,-400.0,0.00011638,2]
[361136859,1747301325284,-400.0,0.00011638,2]
[361136860,1747301325310,-400.0,0.00011638,2]
[361136861,1747301325335,-400.0,0.00011638,2]
[361136862,1747301325360,-400.0,0.00011638,2]
[361136863,1747301325384,-400.0,0.00011638,2]
[361136864,1747301325409,-400.0,0.00011638,2]
[361136865,1747301325434,-400.0,0.00011638,2]
[361136866,1747301325458,-400.0,0.00011638,2]
[361136867,1747301325483,-400.0,0.00011638,2]
[361136868,1747301325508,-400.0,0.00011638,2]
[361136869,1747301325533,-400.0,0.00011638,2]
[361136870,1747301325559,-400.0,0.00011638,2]
[361136871,1747301325584,-400.0,0.00011638,2]
[361136872,1747301325611,-400.0,0.00011638,2]
[361136873,1747301325635,-400.0,0.00011638,2]
[361136874,1747301325661,-1106.6,0.00011638,2]
[361136875,1747301325687,-400.0,0.00011638,2]
[361136876,1747301325712,-483.53,0.00011638,2]
[361136877,1747301325741,-400.0,0.00011638,2]
[361136878,1747301325765,-906.43,0.00011638,2]
[361136879,1747301325792,-400.0,0.00011638,2]
[361136880,1747301325818,-400.0,0.00011638,2]
[361136881,1747301325842,-400.0,0.00011638,2]
[361136882,1747301325866,-400.0,0.00011638,2]
[361136883,1747301325891,-400.0,0.00011638,2]
[361136884,1747301325916,-400.0,0.00011638,2]
[361136885,1747301325942,-705.45,0.00011638,2]
[361136886,1747301325967,-400.0,0.00011638,2]
[361136887,1747301325993,-400.0,0.00011638,2]
[361136888,1747301326017,-400.0,0.00011638,2]
[361136889,1747301326042,-400.0,0.00011638,2]
[361136890,1747301326068,-493.47,0.00011638,2]
[361136891,1747301326094,-603.04,0.00011638,2]
[361136892,1747301326119,-400.0,0.00011638,2]
[361136893,1747301326143,-400.0,0.00011638,2]
[361136894,1747301326168,-1129.68,0.00011638,2]
[361136895,1747301326192,-554.88,0.00011638,2]
[361136896,1747301326217,-400.0,0.00011638,2]
[361136897,1747301326242,-400.0,0.00011638,2]
[361136898,1747301326268,-400.0,0.00011638,2]
[361136899,1747301326294,-400.0,0.00011638,2]
[361136900,1747301326318,-400.0,0.00011638,2]
[361136901,1747301326343,-543.78,0.00011638,2]
[361136902,1747301326368,-402.48,0.00011638,2]
[361136903,1747301326393,-400.0,0.00011638,2]
[361136904,1747301326417,-409.45,0.00011638,2]
[361136905,1747301326443,-779.59,0.00011638,2]
[361136906,1747301326467,-321.24,0.00011638,2]
[361136907,1747301326494,-1524.3,0.00011638,2]
[361136908,1747301326521,-1512.63,0.00011638,2]
[361136909,1747301326547,-426.6,0.00011638,2]
[361136910,1747301326573,-1977.68,0.00011638,2]
[361136911,1747301326597,-400.0,0.00011638,2]
[361136912,1747301326622,-400.0,0.00011638,2]
[361136913,1747301326647,-400.0,0.00011638,2]
[361136914,1747301326672,-405.85,0.00011638,2]
[361136915,1747301326698,-501.82,0.00011638,2]
[361136916,1747301326725,-400.0,0.00011638,2]
[361136917,1747301326822,-400.0,0.00011638,2]
[361136918,1747301326848,-658.05,0.00011638,2]
[361136919,1747301326872,-904.31,0.00011638,2]
[361136920,1747301326897,-400.0,0.00011638,2]
[361136921,1747301326923,-3329.76,0.00011638,2]
[361136922,1747301326947,-400.0,0.00011638,2]
[361136923,1747301326971,-400.0,0.00011638,2]
[361136924,1747301326997,-400.0,0.00011638,2]
[361136925,1747301327024,-1087.33,0.00011638,2]
[361136926,1747301327049,-566.31,0.00011638,2]
[361136927,1747301327074,-400.0,0.00011638,2]
[361136928,1747301327098,-500.0,0.00011638,2]
[361136929,1747301327122,-1376.47,0.00011638,2]
[361136930,1747301327146,-432.87,0.00011638,2]
[361136931,1747301327171,-860.02,0.00011638,2]
[361136932,1747301327195,-400.0,0.00011638,2]
[361136933,1747301327220,-400.0,0.00011638,2]
[361136934,1747301327246,-2632.86,0.00011638,2]
[361136935,1747301327271,-605.36,0.00011638,2]
[361136936,1747301327295,-272.80127178,0.00011638,2]
[361136937,1747301327320,-400.0,0.00011638,2]
[361136938,1747301327344,-500.0,0.00011638,2]
[361136939,1747301327371,-400.0,0.00011638,2]
[361136940,1747301327395,-478.62,0.00011638,2]
[361136941,1747301327420,-1093.34,0.00011638,2]
[361136942,1747301327445,-1462.59,0.00011638,2]
[361136943,1747301327470,-400.0,0.00011638,2]
[361136944,1747301327494,-400.0,0.00011638,2]
[361136945,1747301327520,-400.0,0.00011638,2]
[361136946,1747301327544,-400.0,0.00011638,2]
[361136947,1747301327571,-400.0,0.00011638,2]
[361136948,1747301327596,-1000.0,0.00011638,2]
[361136949,1747301327621,-487.38,0.00011638,2]
[361136950,1747301327647,-400.0,0.00011638,2]
[361136951,1747301327672,-400.0,0.00011638,2]
[361136952,1747301327697,-400.0,0.00011638,2]
[361136953,1747301327723,-400.0,0.00011638,2]
[361136954,1747301327750,-500.0,0.00011638,2]
[361136955,1747301327778,-1749.68,0.00011638,2]
[361136956,1747301327803,-400.0,0.00011638,2]
[361136957,1747301327829,-400.0,0.00011638,2]
[361136958,1747301327854,-708.41,0.00011638,2]
[361136959,1747301327880,-400.0,0.00011638,2]
[361136960,1747301327904,-400.0,0.00011638,2]
[361136961,1747301327929,-400.0,0.00011638,2]
[361136962,1747301327953,-400.0,0.00011638,2]
[361136963,1747301327976,-400.0,0.00011638,2]
[361136964,1747301328007,-1000.47,0.00011638,2]
[361136965,1747301328031,-400.0,0.00011638,2]
[361136966,1747301328056,-400.0,0.00011638,2]
[361136967,1747301328082,-2549.62,0.00011638,2]
[361136968,1747301328108,-409.4,0.00011638,2]
[361136969,1747301328134,-1557.79,0.00011638,2]
[361136970,1747301328159,-593.91,0.00011638,2]
[361136971,1747301328183,-1080.39,0.00011638,2]
[361136972,1747301328208,-729.76,0.00011638,2]
[361136973,1747301328234,-984.27,0.00011638,2]
[361136974,1747301328260,-477.88,0.00011638,2]
[361136975,1747301328286,-400.0,0.00011638,2]
[361136976,1747301328312,-704.84,0.00011638,2]
[361136977,1747301328339,-458.58,0.00011638,2]
[361136978,1747301328365,-729.81,0.00011638,2]
[361136979,1747301328391,-400.0,0.00011638,2]
[361136980,1747301328417,-755.17,0.00011638,2]
[361136981,1747301328443,-40500.47,0.00011638,2]
[361136982,1747301328468,-400.0,0.00011638,2]
[361136983,1747301328494,-151.0,0.00011639,2]
[361136984,1747301328519,-151.0,0.00011639,2]
[361136985,1747301328544,-162.692506,0.00011639,2]
[361136986,1747301328569,-151.0,0.00011639,2]
[361136987,1747301328593,-151.0,0.00011639,2]
[361136988,1747301328618,-151.0,0.00011639,2]
[361136989,1747301328644,-151.0,0.00011639,2]
[361136990,1747301328669,-151.0,0.00011639,2]
[361136991,1747301328696,-151.0,0.00011639,2]
[361136992,1747301328722,-151.0,0.00011639,2]
[361136993,1747301328752,-151.227187,0.00011639,2]
[361136994,1747301328779,-151.0,0.00011639,2]
[361136995,1747301328803,-151.0,0.00011639,2]
[361136996,1747301328830,-163.170071,0.00011639,2]
[361136997,1747301328856,-3090.06,0.00011639,2]
[361136998,1747301328882,-400.0,0.00011639,2]
[361136999,1747301328908,-184.24433019,0.00011639,2]
[361137000,1747301328934,-433.51,0.00011639,2]
[361137001,1747301328960,-863.78,0.00011639,2]
[361137002,1747301328986,-400.0,0.00011639,2]
[361137003,1747301329012,-10506.37,0.00011639,2]
[361137004,1747301329040,-400.0,0.00011639,2]
[361137005,1747301329066,-2223.22,0.00011639,2]
[361137006,1747301329092,-400.0,0.00011639,2]
[361137007,1747301329118,-873.23,0.00011639,2]
[361137008,1747301329143,-1119.84,0.00011639,2]
[361137009,1747301329169,-552.28,0.00011639,2]
[361137010,1747301329194,-216.164557,0.0001164,2]
[361137011,1747301329220,-883.01165,0.0001164,2]
[361137012,1747301329248,-883.01165,0.0001164,2]
[361137013,1747301329275,-151.0,0.0001164,2]
[361137014,1747301329301,-2470.556945,0.0001164,2]
[361137015,1747301329327,-2470.556945,0.0001164,2]
[361137016,1747301329354,-1140.85867002,0.00011643,2]
[361137017,1747301329380,-500.0,0.00011644,2]
[361137018,1747301329406,-552.0,0.00011644,2]
[361137019,1747301329432,-574.0,0.00011644,2]
[361137020,1747301329461,-500.0,0.00011644,2]
[361137021,1747301329489,-421.84854914,0.0001165,2]
[361137022,1747301329516,-400.0,0.0001165,2]
[361137023,1747301329544,-400.0,0.0001165,2]
[361137024,1747301329571,-400.0,0.0001165,2]
[361137025,1747301329598,-400.0,0.0001165,2]
[361137026,1747301329625,-400.0,0.0001165,2]
[361137027,1747301329653,-400.0,0.0001165,2]
[361137028,1747301329681,-400.0,0.0001165,2]
[361137029,1747301329709,-400.0,0.0001165,2]
[361137030,1747301329741,-400.0,0.0001165,2]
[361137031,1747301329769,-400.0,0.0001165,2]
[361137032,1747301329798,-397.9778274,0.0001165,2]
[361137033,1747301329826,-400.0,0.0001165,2]
[361137034,1747301329853,-400.0,0.0001165,2]
[361137035,1747301329878,-400.0,0.0001165,2]
[361137036,1747301329905,-400.0,0.0001165,2]
[361137037,1747301329933,-326.64392026,0.0001165,2]
[361137038,1747301329959,-400.0,0.0001165,2]
[361137039,1747301329986,-434.4196111,0.0001165,2]
[361137040,1747301330011,-400.0,0.0001165,2]
[361137041,1747301330036,-400.0,0.0001165,2]
[361137042,1747301330061,-400.0,0.0001165,2]
[361137043,1747301330086,-400.0,0.0001165,2]
[361137044,1747301330112,-400.0,0.0001165,2]
[361137045,1747301330140,-250.0,0.0001165,2]
[361137046,1747301330166,-400.0,0.0001165,2]
[361137047,1747301330194,-450.0,0.0001165,2]
[361137048,1747301330222,-400.0,0.0001165,2]
[361137049,1747301330249,-400.0,0.0001165,2]
[361137050,1747301330275,-400.0,0.0001165,2]
[361137051,1747301330302,-400.0,0.0001165,2]
[361137052,1747301330327,-400.0,0.0001165,2]
[361137053,1747301330354,-400.0,0.0001165,2]
[361137054,1747301330380,-400.0,0.0001165,2]
[361137055,1747301330405,-400.0,0.0001165,2]
[361137056,1747301330431,-400.0,0.0001165,2]
[361137057,1747301330458,-400.0,0.0001165,2]
[361137058,1747301330485,-210.92848146,0.0001165,2]
[361137059,1747301330511,-546.87495389,0.0001165,2]
[361137060,1747301330538,-400.0,0.0001165,2]
[361137061,1747301330565,-400.0,0.0001165,2]
[361137062,1747301330592,-400.0,0.0001165,2]
[361137063,1747301330619,-400.0,0.0001165,2]
[361137064,1747301330646,-401.35841579,0.0001165,2]
[361137065,1747301330674,-400.0,0.0001165,2]
[361137066,1747301330700,-400.0,0.0001165,2]
[361137067,1747301330727,-400.0,0.0001165,2]
[361137068,1747301330757,-400.0,0.0001165,2]
[361137069,1747301330784,-346.44006266,0.0001165,2]
[361137070,1747301330810,-400.0,0.0001165,2]
[361137071,1747301330835,-400.0,0.0001165,2]
[361137072,1747301330860,-416.91825551,0.0001165,2]
[361137073,1747301330886,-400.0,0.0001165,2]
[361137074,1747301330912,-400.0,0.0001165,2]
[361137075,1747301330937,-400.0,0.0001165,2]
[361137076,1747301330963,-400.0,0.0001165,2]
[361137077,1747301330989,-400.0,0.0001165,2]
[361137078,1747301331016,-535.16971348,0.0001165,2]
[361137079,1747301331042,-223.83980355,0.0001165,2]
[361137080,1747301331068,-400.0,0.0001165,2]
[361137081,1747301331094,-400.0,0.0001165,2]
[361137082,1747301331120,-400.0,0.0001165,2]
[361137083,1747301331146,-400.0,0.0001165,2]
[361137084,1747301331173,-400.0,0.0001165,2]
[361137085,1747301331431,-400.0,0.0001165,2]
[361137086,1747301331456,-400.0,0.0001165,2]
[361137087,1747301331481,-400.0,0.0001165,2]
[361137088,1747301331506,-484.79,0.0001165,2]
[361137089,1747301331531,-400.0,0.0001165,2]
[361137090,1747301331556,-400.0,0.0001165,2]
[361137091,1747301331581,-400.0,0.0001165,2]
[361137092,1747301331605,-400.0,0.0001165,2]
[361137093,1747301331630,-400.0,0.0001165,2]
[361137094,1747301331656,-503.52,0.0001165,2]
[361137095,1747301331680,-400.0,0.0001165,2]
[361137096,1747301331704,-400.0,0.0001165,2]
[361137097,1747301331724,-413.35916394,0.0001165,2]
[361137098,1747301331751,-400.0,0.0001165,2]
[361137099,1747301331777,-400.0,0.0001165,2]
[361137100,1747301331802,-400.0,0.0001165,2]
[361137101,1747301331829,-400.0,0.0001165,2]
[361137102,1747301331854,-400.0,0.0001165,2]
[361137103,1747301331879,-400.0,0.0001165,2]
[361137104,1747301331904,-400.0,0.0001165,2]
[361137105,1747301331929,-530.57,0.0001165,2]
[361137106,1747301331954,-400.0,0.0001165,2]
[361137107,1747301331979,-407.32,0.0001165,2]
[361137108,1747301332004,-400.0,0.0001165,2]
[361137109,1747301332028,-404.14156727,0.0001165,2]
[361137110,1747301332051,-400.0,0.0001165,2]
[361137111,1747301332075,-400.0,0.0001165,2]
[361137112,1747301332100,-400.0,0.0001165,2]
[361137113,1747301332124,-408.47312459,0.0001165,2]
[361137114,1747301332149,-400.0,0.0001165,2]
[361137115,1747301332173,-400.0,0.0001165,2]
[361137116,1747301332198,-400.0,0.0001165,2]
[361137117,1747301332223,-418.26512765,0.0001165,2]
[361137118,1747301332250,-244.24774905,0.0001165,2]
[361137119,1747301332277,-400.0,0.0001165,2]
[361137120,1747301332303,-400.0,0.0001165,2]
[361137121,1747301332327,-400.0,0.0001165,2]
[361137122,1747301332352,-400.0,0.0001165,2]
[361137123,1747301332376,-405.59142912,0.0001165,2]
[361137124,1747301332399,-400.0,0.0001165,2]
[361137125,1747301332424,-405.38321549,0.0001165,2]
[361137126,1747301332448,-400.0,0.0001165,2]
[361137127,1747301332474,-403.27723045,0.0001165,2]
[361137128,1747301332498,-400.0,0.0001165,2]
[361137129,1747301332521,-407.19338011,0.0001165,2]
[361137130,1747301332543,-404.34010708,0.0001165,2]
[361137131,1747301332567,-400.0,0.0001165,2]
[361137132,1747301332592,-400.0,0.0001165,2]
[361137133,1747301332617,-400.0,0.0001165,2]
[361137134,1747301332641,-400.0,0.0001165,2]
[361137135,1747301332669,-400.0,0.0001165,2]
[361137136,1747301332693,-418.54069887,0.0001165,2]
[361137137,1747301332718,-403.96751434,0.0001165,2]
[361137138,1747301332745,-247.50282106,0.0001165,2]
[361137139,1747301332771,-400.0,0.0001165,2]
[361137140,1747301332797,-400.0,0.0001165,2]
[361137141,1747301332822,-406.87917589,0.0001165,2]
[361137142,1747301332846,-513.83060315,0.0001165,2]
[361137143,1747301332871,-503.7625795,0.0001165,2]
[361137144,1747301332895,-400.0,0.0001165,2]
[361137145,1747301332920,-400.0,0.0001165,2]
[361137146,1747301332943,-400.0,0.0001165,2]
[361137147,1747301332967,-456.29,0.0001165,2]
[361137148,1747301332992,-510.56602497,0.0001165,2]
[361137149,1747301333016,-400.0,0.0001165,2]
[361137150,1747301333039,-410.95587799,0.0001165,2]
[361137151,1747301333063,-326.31714004,0.0001165,2]
[361137152,1747301333087,-400.0,0.0001165,2]
[361137153,1747301333111,-400.0,0.0001165,2]
[361137154,1747301333135,-400.0,0.0001165,2]
[361137155,1747301333159,-443.28960165,0.0001165,2]
[361137156,1747301333183,-513.47018556,0.0001165,2]
[361137157,1747301333208,-400.0,0.0001165,2]
[361137158,1747301333234,-400.0,0.0001165,2]
[361137159,1747301333259,-400.0,0.0001165,2]
[361137160,1747301333284,-1000.0,0.0001165,2]
[361137161,1747301333308,-400.0,0.0001165,2]
[361137162,1747301333332,-400.0,0.0001165,2]
[361137163,1747301333356,-400.0,0.0001165,2]
[361137164,1747301333381,-400.0,0.0001165,2]
[361137165,1747301333407,-406.53624383,0.0001165,2]
[361137166,1747301333432,-498.69677263,0.0001165,2]
[361137167,1747301333457,-419.84,0.0001165,2]
[361137168,1747301333484,-400.0,0.0001165,2]
[361137169,1747301333509,-400.0,0.0001165,2]
[361137170,1747301333535,-400.0,0.0001165,2]
[361137171,1747301333560,-400.0,0.0001165,2]
[361137172,1747301333585,-413.88821092,0.0001165,2]
[361137173,1747301333610,-439.95,0.0001165,2]
[361137174,1747301333635,-400.0,0.0001165,2]
[361137175,1747301333661,-406.8851374,0.0001165,2]
[361137176,1747301333686,-406.15003716,0.0001165,2]
[361137177,1747301333711,-400.0,0.0001165,2]
[361137178,1747301333738,-400.0,0.0001165,2]
[361137179,1747301333763,-400.0,0.0001165,2]
[361137180,1747301333789,-400.0,0.0001165,2]
[361137181,1747301333813,-407.05036866,0.0001165,2]
[361137182,1747301333839,-411.52883397,0.0001165,2]
[361137183,1747301333864,-400.0,0.0001165,2]
[361137184,1747301333889,-400.0,0.0001165,2]
[361137185,1747301333915,-400.0,0.0001165,2]
[361137186,1747301333941,-418.84,0.0001165,2]
[361137187,1747301333965,-410.5526308,0.0001165,2]
[361137188,1747301333989,-421.75907013,0.0001165,2]
[361137189,1747301334014,-400.0,0.0001165,2]
[361137190,1747301334039,-400.0,0.0001165,2]
[361137191,1747301334063,-400.0,0.0001165,2]
[361137192,1747301334087,-341.2077,0.0001165,2]
[361137193,1747301334112,-400.0,0.0001165,2]
[361137194,1747301334136,-400.0,0.0001165,2]
[361137195,1747301334159,-400.0,0.0001165,2]
[361137196,1747301334183,-400.0,0.0001165,2]
[361137197,1747301334371,-400.0,0.0001165,2]
[361137198,1747301334437,-400.0,0.0001165,2]
[361137199,1747301334462,-400.0,0.0001165,2]
[361137200,1747301334487,-400.0,0.0001165,2]
[361137201,1747301334513,-400.0,0.0001165,2]
[361137202,1747301334538,-440.98,0.0001165,2]
[361137203,1747301334563,-400.0,0.0001165,2]
[361137204,1747301334591,-400.0,0.0001165,2]
[361137205,1747301334618,-829.68,0.0001165,2]
[361137206,1747301334644,-400.0,0.0001165,2]
[361137207,1747301334670,-400.0,0.0001165,2]